[Event "Chess House GM December 2019"]
[Site "Aarhus"]
[Date "2019.12.16"]
[Round "8.1"]
[White "Thybo, Jesper Sondergaard"]
[Black "Vasli, Aref"]
[Result "1-0"]
[ECO "A61"]
[WhiteElo "2576"]
[BlackElo "2413"]
[Annotator "ChessBase"]
[PlyCount "85"]
[EventDate "2019.12.11"]
[EventType "tourn"]
[EventCountry "DEN"]
[SourceTitle "playchess.com"]
[Source "ChessBase"]
[SourceQuality "1"]
[TimeControl "40/5400+30:1800+30"]

1. d4 {[%emt 0:00:00]} Nf6 {[%emt 0:00:00]} 2. c4 {[%emt 0:00:00]} e6 {[%emt 0:00:00]} 3. Nf3 {[%emt 0:00:00]} c5 {[%emt 0:00:00]} 4. d5 {[%emt 0:00:00]} exd5 {[%emt 0:00:02]} 5. cxd5 {[%emt 0:00:00]} d6 {[%emt 0:00:09]} 6. Nc3 {[%emt 0:00:00]} g6 {[%emt 0:00:08]} 7. h3 {[%emt 0:00:11]} a6 {[%emt 0:01:46]} 8. a4 {[%emt 0:00:12]} Qe7 {[%emt 0:01:51]} 9. Bf4 {[%emt 0:00:25]} Bg7 {[%emt 0:00:32]} 10. Nd2 {[%emt 0:01:40]} O-O {[%emt 0:13:14]} 11. Nc4 {[%emt 0:02:14]} Rd8 {[%emt 0:03:29]} 12. e3 {[%emt 0:01:25]} Ne8 {[%emt 0:01:46]} 13. Be2 {[%emt 0:06:41]} Nd7 {[%emt 0:01:30]} 14. O-O {[%emt 0:00:43]} Ne5 {[%emt 0:09:45]} 15. Nb6 {[%emt 0:09:30]} Rb8 {[%emt 0:00:06]} 16. e4 {[%emt 0:06:57]} Nd7 {[%emt 0:19:24]} 17. Nc4 {[%emt 0:00:10]} Ne5 {[%emt 0:00:05]} 18. Ne3 {[%emt 0:07:58]} b5 {[%emt 0:14:36]} 19. axb5 {[%emt 0:01:36]} axb5 {[%emt 0:00:02]} 20. Bxb5 {[%emt 0:03:09]} Nf6 {[%emt 0:02:05]} 21. Qe2 {[%emt 0:06:23]} Bd7 {[%emt 0:02:25]} 22. Bxe5 {[%emt 0:04:50]} Qxe5 {[%emt 0:02:57]} 23. Bxd7 {[%emt 0:00:06]} Rxd7 {[%emt 0:01:22]} 24. Nc4 {[%emt 0:00:38]} Qe8 {[%emt 0:06:34]} 25. Ra6 {[%emt 0:00:57]} Qf8 {[%emt 0:09:02]} 26. Rfa1 {[%emt 0:02:10]} Re8 {[%emt 0:00:50]} 27. Qf3 {[%emt 0:00:23]} Qe7 {[%emt 0:01:02]} 28. Re1 {[%emt 0:07:03]} Nh5 {[%emt 0:02:23]} 29. g4 {[%emt 0:02:44]} Nf6 {[%emt 0:02:00]} 30. e5 {[%emt 0:00:18]} dxe5 {[%emt 0:00:32]} 31. Rxe5 {[%emt 0:00:16]} Qd8 {[%emt 0:02:25]} 32. Rxe8+ {[%emt 0:00:38]} Nxe8 {[%emt 0:00:11]} 33. d6 {[%emt 0:00:34]} Qg5 {[%emt 0:03:31]} 34. Ra8 {[%emt 0:11:44]} Rd8 {[%emt 0:00:38]} 35. Qc6 {[%emt 0:01:12]} Bf8 {[%emt 0:00:14]} 36. d7 {[%emt 0:01:34]} Nc7 {[%emt 0:00:18]} 37. Rxd8 {[%emt 0:01:43]} Qxd8 {[%emt 0:00:02]} 38. Nd6 {[%emt 0:09:48]} Bxd6 {[%emt 0:00:46]} 39. Qxd6 {[%emt 0:00:14]} Ne6 {[%emt 0:00:12]} 40. Nd5 {[%emt 0:00:41]} Nf8 {[%emt 0:01:33]} 41. Qe7 {[%emt 0:33:59]} Ne6 {[%emt 0:30:30]} 42. Qe8+ {[%emt 0:00:06]} Kg7 {[%emt 0:00:12]} 43. Nf4 {[%emt 0:00:19]} 1-0

[Event "Chess House GM December 2019"]
[Site "Aarhus"]
[Date "2019.12.16"]
[Round "8.2"]
[White "Danielsen, Henrik"]
[Black "Ochsner, Bjorn Moller"]
[Result "1/2-1/2"]
[ECO "A04"]
[WhiteElo "2500"]
[BlackElo "2492"]
[Annotator "ChessBase"]
[PlyCount "81"]
[EventDate "2019.12.11"]
[EventType "tourn"]
[EventCountry "DEN"]
[SourceTitle "playchess.com"]
[Source "ChessBase"]
[SourceQuality "1"]
[TimeControl "40/5400+30:1800+30"]

1. Nf3 {[%emt 0:00:00]} c5 {[%emt 0:00:09]} 2. c3 {[%emt 0:00:01]} Nf6 {[%emt 0:06:12]} 3. d4 {[%emt 0:01:29]} e6 {[%emt 0:01:10]} 4. g3 {[%emt 0:00:26]} Nc6 {[%emt 0:10:41]} 5. Bg2 {[%emt 0:00:36]} d5 {[%emt 0:00:23]} 6. O-O {[%emt 0:00:08]} cxd4 {[%emt 0:12:33]} 7. cxd4 {[%emt 0:00:22]} Be7 {[%emt 0:00:31]} 8. Nc3 {[%emt 0:00:07]} O-O {[%emt 0:00:19]} 9. Bg5 {[%emt 0:01:30]} h6 {[%emt 0:03:19]} 10. Bxf6 {[%emt 0:00:42]} Bxf6 {[%emt 0:00:06]} 11. a3 {[%emt 0:00:52]} b6 {[%emt 0:03:05]} 12. b4 {[%emt 0:00:18]} Bb7 {[%emt 0:00:45]} 13. Rc1 {[%emt 0:05:10]} Rc8 {[%emt 0:03:59]} 14. e3 {[%emt 0:00:30]} Ne7 {[%emt 0:08:13]} 15. Qb3 {[%emt 0:06:55]} Nf5 {[%emt 0:02:04]} 16. Rfd1 {[%emt 0:01:06]} Nd6 {[%emt 0:02:35]} 17. Nd2 {[%emt 0:01:05]} Rc7 {[%emt 0:07:03]} 18. Bf1 {[%emt 0:02:20]} Qe7 {[%emt 0:01:00]} 19. Nb5 {[%emt 0:02:39]} Nxb5 {[%emt 0:00:16]} 20. Bxb5 {[%emt 0:00:12]} Rfc8 {[%emt 0:00:19]} 21. Qb2 {[%emt 0:00:32]} e5 {[%emt 0:12:16]} 22. Nf3 {[%emt 0:00:33]} Rxc1 {[%emt 0:06:42]} 23. Rxc1 {[%emt 0:00:07]} Rxc1+ {[%emt 0:01:06]} 24. Qxc1 {[%emt 0:00:03]} exd4 {[%emt 0:00:40]} 25. Nxd4 {[%emt 0:00:08]} g6 {[%emt 0:03:26]} 26. h4 {[%emt 0:03:34]} Kg7 {[%emt 0:02:34]} 27. Qc3 {[%emt 0:00:27]} h5 {[%emt 0:03:43]} 28. Bf1 {[%emt 0:03:32]} Qd8 {[%emt 0:02:06]} 29. Bg2 {[%emt 0:02:30]} a5 {[%emt 0:00:37]} 30. bxa5 {[%emt 0:01:01]} bxa5 {[%emt 0:00:02]} 31. Qb3 {[%emt 0:00:21]} Qc7 {[%emt 0:02:42]} 32. Qb5 {[%emt 0:13:15]} Bc8 {[%emt 0:03:21]} 33. Bxd5 {[%emt 0:03:45]} Qc1+ {[%emt 0:01:38]} 34. Kg2 {[%emt 0:00:20]} Qxa3 {[%emt 0:00:43]} 35. Qc4 {[%emt 0:01:54]} Qd6 {[%emt 0:00:36]} 36. Bxf7 {[%emt 0:05:02]} Bb7+ {[%emt 0:00:22]} 37. f3 {[%emt 0:04:28]} Bxd4 {[%emt 0:00:30]} 38. exd4 {[%emt 0:00:19]} Bxf3+ {[%emt 0:00:07]} 39. Kxf3 {[%emt 0:00:28]} Qf6+ {[%emt 0:00:10]} 40. Kg2 {[%emt 0:02:40]} Qxf7 {[%emt 0:00:14]} 41. d5 {[%emt 0:30:06]} 1/2-1/2

[Event "Chess House GM December 2019"]
[Site "Aarhus"]
[Date "2019.12.16"]
[Round "8.3"]
[White "Smith, Axel"]
[Black "Svane, Frederik"]
[Result "1/2-1/2"]
[ECO "D27"]
[WhiteElo "2470"]
[BlackElo "2398"]
[Annotator "ChessBase"]
[PlyCount "81"]
[EventDate "2019.12.11"]
[EventType "tourn"]
[EventCountry "DEN"]
[SourceTitle "playchess.com"]
[Source "ChessBase"]
[SourceQuality "1"]
[TimeControl "40/5400+30:1800+30"]

1. d4 {[%emt 0:00:00]} d5 {[%emt 0:00:00]} 2. c4 {[%emt 0:00:00]} dxc4 {[%emt 0:00:37]} 3. e3 {[%emt 0:03:12]} Nf6 {[%emt 0:01:00]} 4. Bxc4 {[%emt 0:00:07]} e6 {[%emt 0:00:13]} 5. Nf3 {[%emt 0:00:26]} c5 {[%emt 0:00:19]} 6. O-O {[%emt 0:00:09]} a6 {[%emt 0:00:28]} 7. b3 {[%emt 0:12:06]} b5 {[%emt 0:10:34]} 8. Be2 {[%emt 0:00:02]} Nbd7 {[%emt 0:00:44]} 9. Bb2 {[%emt 0:01:35]} Bb7 {[%emt 0:02:37]} 10. a4 {[%emt 0:00:26]} bxa4 {[%emt 0:08:53]} 11. Rxa4 {[%emt 0:11:14]} cxd4 {[%emt 0:04:30]} 12. Bxd4 {[%emt 0:04:20]} Bc5 {[%emt 0:21:54]} 13. Nbd2 {[%emt 0:02:38]} O-O {[%emt 0:05:31]} 14. Qa1 {[%emt 0:00:48]} Bxd4 {[%emt 0:01:13]} 15. Nxd4 {[%emt 0:19:24]} Nc5 {[%emt 0:02:28]} 16. Ra5 {[%emt 0:02:47]} Nce4 {[%emt 0:00:27]} 17. Nxe4 {[%emt 0:00:55]} Nxe4 {[%emt 0:00:24]} 18. Bf3 {[%emt 0:06:38]} Qb6 {[%emt 0:03:13]} 19. Rc1 {[%emt 0:08:40]} h6 {[%emt 0:03:01]} 20. Re5 {[%emt 0:03:52]} Nd6 {[%emt 0:05:27]} 21. Bxb7 {[%emt 0:00:19]} Qxb7 {[%emt 0:00:01]} 22. Rec5 {[%emt 0:01:07]} Rfc8 {[%emt 0:01:59]} 23. Nc6 {[%emt 0:05:19]} Kh8 {[%emt 0:01:14]} 24. Qe5 {[%emt 0:00:51]} Ne8 {[%emt 0:02:59]} 25. Qc3 {[%emt 0:05:02]} Nf6 {[%emt 0:07:01]} 26. Qc2 {[%emt 0:00:20]} Rc7 {[%emt 0:09:30]} 27. Nd4 {[%emt 0:00:01]} Rxc5 {[%emt 0:00:19]} 28. Qxc5 {[%emt 0:00:00]} Kg8 {[%emt 0:00:50]} 29. h3 {[%emt 0:01:43]} Qd5 {[%emt 0:02:41]} 30. Kf1 {[%emt 0:03:58]} Qxc5 {[%emt 0:02:04]} 31. Rxc5 {[%emt 0:00:01]} a5 {[%emt 0:01:21]} 32. Rc4 {[%emt 0:00:55]} Rb8 {[%emt 0:01:27]} 33. Ra4 {[%emt 0:06:16]} Ne4 34. Rxa5 {[%emt 0:01:13]} Nd2+ {[%emt 0:01:00]} 35. Ke1 {[%emt 0:00:34]} Nxb3 {[%emt 0:00:08]} 36. Rb5 {[%emt 0:00:29]} Rxb5 {[%emt 0:00:05]} 37. Nxb5 {[%emt 0:00:02]} Nc5 {[%emt 0:00:12]} 38. Ke2 {[%emt 0:00:23]} Kf8 {[%emt 0:00:08]} 39. g4 {[%emt 0:00:52]} g5 {[%emt 0:00:55]} 40. f4 {[%emt 0:00:19]} Ke7 {[%emt 0:01:11]} 41. Kf3 {[%emt 0:30:54]} 1/2-1/2

[Event "Chess House GM December 2019"]
[Site "Aarhus"]
[Date "2019.12.16"]
[Round "8.5"]
[White "Olsen, Filip Boe"]
[Black "Uffe Vinther-Schou"]
[Result "0-1"]
[ECO "E10"]
[WhiteElo "2341"]
[BlackElo "2359"]
[Annotator "NA"]
[PlyCount "54"]
[EventDate "2019.12.11"]
[EventType "tourn"]
[EventCountry "DEN"]
[SourceTitle "playchess.com"]
[Source "ChessBase"]
[SourceQuality "1"]
[TimeControl "40/5400+30:1800+30"]

1. d4 {[%emt 0:00:00]} Nf6 {[%emt 0:01:27]} 2. c4 {[%emt 0:00:00]} e6 {[%emt 0:01:27]} 3. Nf3 {[%emt 0:00:09]} c5 {[%emt 0:00:23]} 4. d5 {[%emt 0:00:10]} exd5 {[%emt 0:00:42]} 5. cxd5 {[%emt 0:00:30]} Bd6 {[%emt 0:00:30]} 6. Nc3 {[%emt 0:00:30]} Bc7 {[%emt 0:00:30]} 7. e4 {[%emt 0:00:30]} d6 {[%emt 0:00:30]} 8. h3 {[%emt 0:00:30]} O-O {[%emt 0:00:30]} 9. Bd3 {[%emt 0:00:30]} a6 {[%emt 0:00:30]} 10. a4 {[%emt 0:00:30]} Re8 {[%emt 0:00:30]} 11. O-O {[%emt 0:00:30]} Nbd7 {[%emt 0:00:30]} 12. Bf4 {[%emt 0:00:30]} Nf8 {[%emt 0:00:30]} 13. Nd2 {[%emt 0:00:30]} Ng6 {[%emt 0:00:30]} 14. Bg3 {[%emt 0:00:30]} Rb8 {[%emt 0:00:30]} 15. a5 {[%emt 0:00:30]} Ne5 {[%emt 0:04:10]} 16. Bxe5 {[%emt 0:40:47]} Rxe5 {[%emt 0:00:07]} 17. Nc4 {[%emt 0:00:30]} Re8 {[%emt 0:14:15]} 18. e5 {[%emt 0:10:38]} Rxe5 {[%emt 0:00:11]} 19. Nxe5 {[%emt 0:00:21]} dxe5 {[%emt 0:00:01]} 20. Qf3 {[%emt 0:08:18]} Qd6 {[%emt 0:03:26]} 21. Rfd1 {[%emt 0:03:00]} Bd7 {[%emt 0:01:45]} 22. Bf5 {[%emt 0:05:42]} e4 {[%emt 0:10:53]} 23. Nxe4 {[%emt 0:12:02]} Qh2+ {[%emt 0:00:08]} 24. Kf1 {[%emt 0:00:10]} Bb5+ {[%emt 0:00:10]} 25. Rd3 {[%emt 0:01:17]} Nxe4 {[%emt 0:01:16]} 26. Bxh7+ {[%emt 0:03:03]} Kf8 {[%emt 0:00:06]} 27. Rad1 {[%emt 0:02:05]} Ng5 0-1

[Event "Chess House GM December 2019"]
[Site "Aarhus"]
[Date "2019.12.17"]
[Round "9.1"]
[White "Svane, Frederik"]
[Black "Olsen, Filip Boe"]
[Result "1-0"]
[ECO "B23"]
[WhiteElo "2398"]
[BlackElo "2341"]
[Annotator "ChessBase"]
[PlyCount "63"]
[EventDate "2019.12.11"]
[EventType "tourn"]
[EventCountry "DEN"]
[SourceTitle "playchess.com"]
[Source "ChessBase"]
[SourceQuality "1"]
[TimeControl "40/5400+30:1800+30"]

1. e4 {[%emt 0:00:00]} c5 {[%emt 0:00:00]} 2. Nc3 {[%emt 0:00:00]} d6 {[%emt 0:00:03]} 3. Nge2 {[%emt 0:00:03]} Nf6 {[%emt 0:00:45]} 4. g3 {[%emt 0:00:13]} g6 {[%emt 0:00:48]} 5. Bg2 {[%emt 0:00:11]} Bg7 {[%emt 0:00:13]} 6. O-O {[%emt 0:00:19]} O-O {[%emt 0:00:29]} 7. d3 {[%emt 0:00:09]} Nc6 {[%emt 0:00:08]} 8. h3 {[%emt 0:00:11]} Rb8 {[%emt 0:00:58]} 9. f4 {[%emt 0:01:06]} Nd7 {[%emt 0:10:43]} 10. a4 {[%emt 0:01:30]} a6 {[%emt 0:03:46]} 11. Nd5 {[%emt 0:00:22]} b5 {[%emt 0:03:18]} 12. axb5 {[%emt 0:00:05]} axb5 {[%emt 0:00:14]} 13. Ne3 {[%emt 0:00:32]} b4 {[%emt 0:11:25]} 14. c3 {[%emt 0:00:08]} bxc3 {[%emt 0:07:22]} 15. bxc3 {[%emt 0:00:06]} Nb6 {[%emt 0:09:29]} 16. f5 {[%emt 0:15:50]} Ne5 {[%emt 0:09:02]} 17. d4 {[%emt 0:14:25]} cxd4 {[%emt 0:02:16]} 18. cxd4 {[%emt 0:00:56]} Nec4 {[%emt 0:03:33]} 19. Ng4 {[%emt 0:00:13]} Kh8 {[%emt 0:16:48]} 20. Nh6 {[%emt 0:21:33]} Qe8 {[%emt 0:06:22]} 21. Rf2 {[%emt 0:02:53]} d5 {[%emt 0:03:23]} 22. Bf4 {[%emt 0:21:02]} dxe4 {[%emt 0:04:51]} 23. Bxb8 {[%emt 0:08:11]} Bxh6 {[%emt 0:00:10]} 24. Bf4 {[%emt 0:00:03]} Bxf4 {[%emt 0:01:38]} 25. Nxf4 {[%emt 0:01:06]} gxf5 {[%emt 0:01:08]} 26. d5 {[%emt 0:04:47]} f6 {[%emt 0:00:57]} 27. Qd4 {[%emt 0:00:52]} Rg8 {[%emt 0:00:01]} 28. Bf1 {[%emt 0:01:05]} Rxg3+ {[%emt 0:01:18]} 29. Kh2 {[%emt 0:00:41]} e3 {[%emt 0:01:07]} 30. Bxc4 {[%emt 0:01:03]} Nxc4 {[%emt 0:01:15]} 31. Qxc4 {[%emt 0:00:25]} Qg8 {[%emt 0:00:25]} 32. Rg2 {[%emt 0:00:17]} 1-0

[Event "Chess House GM December 2019"]
[Site "Aarhus"]
[Date "2019.12.17"]
[Round "9.5"]
[White "Vasli, Aref"]
[Black "Smith, Axel"]
[Result "1/2-1/2"]
[ECO "C83"]
[WhiteElo "2413"]
[BlackElo "2470"]
[Annotator "ChessBase"]
[PlyCount "78"]
[EventDate "2019.12.11"]
[EventType "tourn"]
[EventCountry "DEN"]
[SourceTitle "playchess.com"]
[Source "ChessBase"]
[SourceQuality "1"]
[TimeControl "40/5400+30:1800+30"]

1. e4 {[%emt 0:00:00]} e5 {[%emt 0:00:00]} 2. Nf3 {[%emt 0:00:00]} Nc6 {[%emt 0:00:00]} 3. Bb5 {[%emt 0:00:01]} a6 {[%emt 0:00:00]} 4. Ba4 {[%emt 0:00:19]} Nf6 {[%emt 0:00:00]} 5. O-O {[%emt 0:00:45]} Nxe4 {[%emt 0:00:00]} 6. d4 {[%emt 0:04:34]} Be7 {[%emt 0:00:24]} 7. Re1 {[%emt 0:03:04]} b5 {[%emt 0:00:21]} 8. Bb3 {[%emt 0:00:03]} d5 {[%emt 0:00:49]} 9. dxe5 {[%emt 0:00:10]} Be6 {[%emt 0:00:17]} 10. c3 {[%emt 0:06:59]} O-O {[%emt 0:00:24]} 11. Nbd2 {[%emt 0:04:14]} Nc5 {[%emt 0:01:08]} 12. Bc2 {[%emt 0:06:48]} d4 {[%emt 0:00:28]} 13. Nb3 {[%emt 0:01:16]} dxc3 {[%emt 0:02:46]} 14. bxc3 {[%emt 0:06:27]} Qxd1 {[%emt 0:19:37]} 15. Rxd1 {[%emt 0:01:11]} Na4 {[%emt 0:03:08]} 16. Nbd4 {[%emt 0:13:13]} Nxd4 {[%emt 0:00:05]} 17. cxd4 {[%emt 0:16:24]} Nc3 {[%emt 0:00:18]} 18. Re1 {[%emt 0:01:30]} h6 {[%emt 0:31:18]} 19. Bd2 {[%emt 0:03:15]} Nd5 {[%emt 0:07:30]} 20. Be4 {[%emt 0:01:30]} c5 {[%emt 0:03:18]} 21. dxc5 {[%emt 0:01:25]} Bxc5 {[%emt 0:00:01]} 22. Red1 {[%emt 0:03:30]} Rad8 {[%emt 0:03:04]} 23. Ba5 {[%emt 0:04:25]} Bb6 {[%emt 0:01:25]} 24. Bxd5 {[%emt 0:07:05]} Bxa5 {[%emt 0:00:04]} 25. Bxe6 {[%emt 0:02:39]} fxe6 {[%emt 0:00:01]} 26. Rac1 {[%emt 0:01:31]} Bc3 {[%emt 0:09:50]} 27. Kf1 {[%emt 0:01:07]} b4 {[%emt 0:00:03]} 28. Ke2 {[%emt 0:01:55]} a5 {[%emt 0:04:04]} 29. a4 {[%emt 0:03:58]} Rc8 {[%emt 0:04:22]} 30. Rd6 {[%emt 0:01:34]} Bxe5 {[%emt 0:04:03]} 31. Rxc8 {[%emt 0:00:02]} Bxd6 {[%emt 0:00:10]} 32. Rc6 {[%emt 0:00:04]} Bf4 {[%emt 0:00:19]} 33. g3 {[%emt 0:00:39]} Bg5 {[%emt 0:01:18]} 34. Nd4 {[%emt 0:00:01]} e5 {[%emt 0:03:04]} 35. Nb3 {[%emt 0:00:36]} e4 {[%emt 0:01:20]} 36. Nxa5 {[%emt 0:00:39]} Ra8 {[%emt 0:01:21]} 37. Rc5 {[%emt 0:00:45]} b3 {[%emt 0:01:25]} 38. Nxb3 {[%emt 0:00:41]} Rxa4 {[%emt 0:00:06]} 39. Rc2 {[%emt 0:02:05]} Kf7 {[%emt 0:00:03]} 1/2-1/2